[Event "Tsaghkadzor Open 2024"]
[Site "Tsaghkadzor"]
[Date "2024.10.01"]
[Round "2.6"]
[White "Manukyan, Aleks"]
[Black "Zverev, Lev"]
[Result "1/2-1/2"]
[ECO "E32"]
[WhiteElo "2188"]
[BlackElo "2448"]
[Annotator "TA"]
[PlyCount "89"]
[EventDate "2024.09.13"]
[EventType "swiss"]
[EventCountry "ARM"]
[SourceTitle "playchess.com"]
[Source "ChessBase"]
[SourceQuality "1"]
[TimeControl "40/5400+30:1800+30"]

{[%evp 21,89,0,9,11,42,27,75,68,78,49,76,70,70,29,98,85,90,93,96,33,29,34,82,65,96,102,100,95,67,0,8,11,243,105,108,110,100,46,21,27,91,0,0,0,0,0,0,0,93,8,66,59,113,67,53,75,71,0,0,0,0,0,0,0,0,0,0,0,0,0]} 1. d4 {[%emt 0:00:04]} Nf6 {[%emt 0:00:06]} 2. c4 {[%emt 0:00:05]} e6 {[%emt 0:00:04]} 3. Nc3 {[%emt 0:00:04]} Bb4 {[%emt 0:00:06]} 4. Qc2 {[%emt 0:01:23]} d6 {[%emt 0:03:45]} 5. a3 {[%emt 0:01:09]} Bxc3+ {[%emt 0:00:08]} 6. Qxc3 {[%emt 0:00:05]} O-O {[%emt 0:00:47]} 7. Nf3 {[%emt 0:00:31]} b6 {[%emt 0:01:47]} 8. g3 {[%emt 0:01:02]} Bb7 {[%emt 0:07:41]} 9. Bg2 {[%emt 0:02:23]} Nbd7 {[%emt 0:01:37]} 10. O-O {[%emt 0:01:06]} c5 {[%emt 0:01:39]} 11. b4 {[%emt 0:09:06]} Rc8 {[%emt 0:04:52]} 12. Bb2 {[%emt 0:06:13]} Qe7 {[%emt 0:12:34]} 13. Rfd1 {[%emt 0:04:47]} d5 {[%emt 0:07:32]} (13... Rfd8 $11) 14. dxc5 $16 {[%emt 0:09:03] White is better.} bxc5 {[%emt 0:00:17]} 15. cxd5 {[%emt 0:01:09]} Bxd5 {[%emt 0:00:19]} 16. b5 {[%emt 0:05:53]} Nb6 {[%emt 0:04:18]} 17. a4 {[%emt 0:02:23]} Nc4 {[%emt 0:06:22]} (17... Qb7 $1 $11) 18. Ne5 {[%emt 0:04:23]} Nxb2 {[%emt 0:02:28]} 19. Qxb2 {[%emt 0:00:18]} Qb7 {[%emt 0:00:18]} 20. Bxd5 {[%emt 0:02:32]} (20. f3 $16 c4 21. Qc3) 20... exd5 $14 {[%emt 0:00:06]} 21. Qc2 $36 {[%emt 0:04:01][%mdl 2048] White fights for an advantage.} a6 {[%emt 0:12:09]} (21... h5 $14) 22. Nc6 $1 $16 {[%emt 0:02:20]} c4 {[%emt 0:07:42] [#]} 23. e4 $1 {[%emt 0:00:29]} dxe4 {[%emt 0:01:40]} 24. Qxc4 {[%emt 0:00:32]} Rfe8 {[%emt 0:01:15]} 25. Rd6 {[%emt 0:06:28]} (25. bxa6 $2 Qxc6 26. Qb5 e3 27. Qxc6 exf2+ (27... Rxc6 $2 28. fxe3 Rxa6 29. Rd4 $19) 28. Kxf2 Rxc6 $19) (25. Rdc1 $14 e3 26. fxe3) 25... axb5 $11 {[%emt 0:04:18]} 26. axb5 {[%emt 0:03:56] Threatening Qb4.} Ng4 $2 {[%emt 0:03:42]} (26... e3 $11 {and Black has nothing to worry.} 27. fxe3 Ra8) 27. Qc5 {[%emt 0:09:25]} (27. Qe2 $1 $18 {is the precise move to win.} h5 28. Ra7 Rxc6 29. Rxb7 Rxd6 30. h3) 27... Ra8 $16 {[%emt 0:01:01]} (27... e3 $2 28. fxe3 Ra8 29. Rxa8 Qxa8 30. Qa7 Qxa7 31. Nxa7 $18) 28. Rad1 {[%emt 0:05:08]} Nf6 {[%emt 0:04:48][%cal Oe4e3] Against Rd7} 29. Qf5 {[%emt 0:04:59] Black must now prevent Rxf6.} e3 {[%emt 0:00:33]} 30. fxe3 {[%emt 0:02:07]} Rxe3 {[%emt 0:00:06]} 31. Qg5 {[%emt 0:01:29]} ({White should try} 31. R1d4 $1 $16 {aiming for Rxf6.} Re1+ 32. Kg2) 31... Re6 $11 {[%emt 0:03:09]} ({Not} 31... Qb6 $2 32. Ne7+ (32. Rxf6 $2 {too greedy.} Rf3+ 33. Kh1 Rxf6 $19) 32... Rxe7+ 33. Rxb6 $18) 32. Rxe6 {[%emt 0:02:23]} fxe6 {[%emt 0:00:01]} 33. Qc5 {[%emt 0:00:26]} h6 $1 {[%emt 0:04:48]} 34. Re1 {[%emt 0:02:11]} Nd7 {[%emt 0:01:13] [#]} (34... Ra2 $11 {keeps the balance.}) 35. Ne7+ {[%emt 0:01:44]} (35. Qc4 $1 $16) 35... Kh8 {[%emt 0:00:12]} ({Black should play} 35... Kf7 $11 36. Qd6 Qb6+ 37. Qxb6 Nxb6) 36. Qc6 $14 {[%emt 0:00:57]} Qa7+ {[%emt 0:00:05]} 37. Kg2 {[%emt 0:00:22]} (37. Kh1 $16) 37... Qa2+ {[%emt 0:02:10]} 38. Kh3 {[%emt 0:00:16] Active counter play!} Nf8 {[%emt 0:02:36] [#]} 39. b6 {[%emt 0:00:52]} (39. Rf1 $1 $16 {[%cal Oc6a8] Strongly threatening Qxa8!} Qe2 40. Qf3 Qxf3 (40... Qxb5 41. Ng6+ Nxg6 42. Qxa8+ Kh7 43. Qf3 $18) 41. Rxf3) 39... Qa5 $11 {[%emt 0:01:05] The position is equal.} 40. Qf3 {[%emt 0:00:00] Prevents Qh5+} Qxe1 {[%emt 0:00:00]} 41. Qxa8 {[%emt 0:20:40]} Qf1+ {[%emt 0:15:37]} 42. Kg4 {[%emt 0:03:18]} Qe2+ {[%emt 0:01:38]} 43. Kh3 {[%emt 0:01:49]} Qh5+ {[%emt 0:01:03]} 44. Kg2 {[%emt 0:00:03]} Qe2+ {[%emt 0:00:07]} 45. Kh3 {[%emt 0:00:10] Weighted Error Value: White=0.23 (precise) /Black=0.22 (precise) .  Loses game:     	---       	Black=1      Mistake:       	White=7     	Black=5      Inaccurate:     	White=1     	Black=4      OK:         	White=9     	Black=14     Best:        	White=6     	Black=3      Strong:       	White=1     	Black=1      Brilliant:      	White=1     	---} 1/2-1/2

[Event "Tsaghkadzor Open 2024"]
[Site "Tsaghkadzor"]
[Date "2024.10.01"]
[Round "2.7"]
[White "Goganov, Aleksey"]
[Black "Torosyan, Volodya"]
[Result "1/2-1/2"]
[ECO "B90"]
[WhiteElo "2463"]
[BlackElo "2187"]
[Annotator "RC"]
[PlyCount "85"]
[EventDate "2024.09.13"]
[EventType "swiss"]
[EventCountry "ARM"]
[SourceTitle "playchess.com"]
[Source "ChessBase"]
[SourceQuality "1"]
[TimeControl "40/5400+30:1800+30"]

1. e4 {[%emt 0:00:10]} c5 {[%emt 0:00:06]} 2. Nf3 {[%emt 0:00:05]} d6 {[%emt 0:00:06]} 3. d4 {[%emt 0:00:03]} cxd4 {[%emt 0:00:04]} 4. Nxd4 {[%emt 0:00:06]} Nf6 {[%emt 0:00:04]} 5. Nc3 {[%emt 0:00:06]} a6 {[%emt 0:00:03]} 6. Be3 {[%emt 0:00:07]} Ng4 {[%emt 0:00:12]} 7. Bg5 {[%emt 0:00:17]} h6 {[%emt 0:00:21]} 8. Bc1 {[%emt 0:00:15]} Nf6 {[%emt 0:00:11]} 9. Bd3 {[%emt 0:00:12]} Nc6 {[%emt 0:01:36]} 10. Nxc6 {[%emt 0:01:31]} bxc6 {[%emt 0:00:08]} 11. Qe2 {[%emt 0:01:41]} e5 {[%emt 0:04:07]} 12. b3 {[%emt 0:00:20]} Be7 {[%emt 0:03:16]} 13. Bb2 {[%emt 0:00:07]} O-O {[%emt 0:01:09]} 14. O-O-O {[%emt 0:00:38]} Nd7 {[%emt 0:03:17]} 15. Na4 {[%emt 0:13:11]} Nb6 {[%emt 0:03:23]} 16. Nxb6 {[%emt 0:00:14]} Qxb6 {[%emt 0:00:05]} 17. g4 {[%emt 0:12:08]} Bh4 {[%emt 0:03:08]} 18. f3 {[%emt 0:00:27]} Bb7 {[%emt 0:04:21]} 19. Kb1 {[%emt 0:02:00]} Rfe8 {[%emt 0:02:59]} 20. Rhf1 {[%emt 0:00:53]} d5 {[%emt 0:06:03]} 21. Qg2 {[%emt 0:03:45]} Rad8 {[%emt 0:07:26]} 22. f4 {[%emt 0:02:13]} exf4 {[%emt 0:09:37]} 23. exd5 {[%emt 0:01:00]} Bg5 {[%emt 0:04:40]} 24. h4 {[%emt 0:08:26]} Bxh4 {[%emt 0:02:08]} 25. Rxf4 {[%emt 0:00:59]} Bg5 {[%emt 0:03:16]} 26. Rxf7 {[%emt 0:06:51]} Kxf7 {[%emt 0:03:22]} 27. Qf3+ {[%emt 0:00:18]} Bf6 {[%emt 0:20:54]} 28. g5 {[%emt 0:01:16]} hxg5 {[%emt 0:01:06]} 29. Qh5+ {[%emt 0:00:38]} Ke7 {[%emt 0:03:23]} 30. Re1+ {[%emt 0:12:43]} Kf8 {[%emt 0:05:01]} 31. Rf1 {[%emt 0:00:27]} Ke7 {[%emt 0:05:48]} 32. Bxf6+ {[%emt 0:08:21]} gxf6 {[%emt 0:00:04]} 33. Qh7+ {[%emt 0:00:11]} Kd6 {[%emt 0:00:07]} 34. Rxf6+ {[%emt 0:00:05]} Kc5 {[%emt 0:00:31]} 35. Qh2 {[%emt 0:01:38]} Re1+ {[%emt 0:05:25]} 36. Kb2 {[%emt 0:00:05]} Re3 {[%emt 0:00:27]} 37. Qd2 {[%emt 0:07:36]} Rde8 {[%emt 0:00:22]} 38. d6 {[%emt 0:04:22]} Bc8 {[%emt 0:00:32]} 39. a3 {[%emt 0:03:22]} a5 {[%emt 0:00:25]} 40. d7 {[%emt 0:00:00]} Bxd7 {[%emt 0:00:00]} 41. Qc3+ {[%emt 0:23:25]} Kd5 {[%emt 0:15:38]} 42. Bc4+ {[%emt 0:00:12]} Kc5 {[%emt 0:00:17]} 43. Bd3+ {[%emt 0:00:48]} 1/2-1/2

[Event "Tsaghkadzor Open 2024"]
[Site "Tsaghkadzor"]
[Date "2024.10.01"]
[Round "2.7"]
[White "Manukyan, Aleks"]
[Black "Zverev, Lev"]
[Result "*"]
[ECO "B90"]
[WhiteElo "2188"]
[BlackElo "2448"]
[Annotator "RC"]
[PlyCount "45"]
[EventDate "2024.09.13"]
[EventType "swiss"]
[EventCountry "ARM"]
[SourceTitle "playchess.com"]
[Source "ChessBase"]
[SourceQuality "1"]
[TimeControl "40/5400+30:1800+30"]

1. e4 {[%emt 0:00:10]} c5 {[%emt 0:00:06]} 2. Nf3 {[%emt 0:00:05]} d6 {[%emt 0:00:06]} 3. d4 {[%emt 0:00:03]} cxd4 {[%emt 0:00:04]} 4. Nxd4 {[%emt 0:00:06]} Nf6 {[%emt 0:00:04]} 5. Nc3 {[%emt 0:00:06]} a6 {[%emt 0:00:03]} 6. Be3 {[%emt 0:00:07]} Ng4 {[%emt 0:00:12]} 7. Bg5 {[%emt 0:00:17]} h6 {[%emt 0:00:21]} 8. Bc1 {[%emt 0:00:15]} Nf6 {[%emt 0:00:11]} 9. Bd3 {[%emt 0:00:12]} Nc6 {[%emt 0:01:36]} 10. Nxc6 {[%emt 0:01:31]} bxc6 {[%emt 0:00:08]} 11. Qe2 {[%emt 0:01:41]} e5 {[%emt 0:04:07]} 12. b3 {[%emt 0:00:20]} Be7 {[%emt 0:03:16]} 13. Bb2 {[%emt 0:00:07]} O-O {[%emt 0:01:09]} 14. O-O-O {[%emt 0:00:38]} Nd7 {[%emt 0:03:17]} 15. Na4 {[%emt 0:13:11]} Nb6 {[%emt 0:03:23]} 16. Nxb6 {[%emt 0:00:14]} Qxb6 {[%emt 0:00:05]} 17. g4 {[%emt 0:12:08]} Bh4 {[%emt 0:03:08]} 18. f3 {[%emt 0:00:27]} Bb7 {[%emt 0:04:21]} 19. Kb1 {[%emt 0:02:00]} Rfe8 {[%emt 0:02:59]} 20. Rhf1 {[%emt 0:00:53]} d5 {[%emt 0:06:03]} 21. Qg2 {[%emt 0:03:45]} Rad8 {[%emt 0:07:26]} 22. f4 {[%emt 0:02:13]} exf4 {[%emt 0:09:37]} 23. exd5 {[%emt 0:01:00]} *

[Event "Tsaghkadzor Open 2024"]
[Site "Tsaghkadzor"]
[Date "2024.10.01"]
[Round "2.8"]
[White "Pingin, Artem"]
[Black "Kornienko, Konstantin"]
[Result "1/2-1/2"]
[ECO "E04"]
[WhiteElo "2438"]
[BlackElo "2058"]
[Annotator "TA"]
[PlyCount "61"]
[EventDate "2024.09.13"]
[EventType "swiss"]
[EventCountry "ARM"]
[SourceTitle "playchess.com"]
[Source "ChessBase"]
[SourceQuality "1"]
[TimeControl "40/5400+30:1800+30"]

{[%evp 11,61,0,24,23,12,16,10,2,26,0,0,0,0,0,0,-22,0,0,0,-24,-23,-48,-50,-27,35,37,40,45,36,47,33,47,52,0,9,7,0,4,5,0,0,0,0,0,0,0,0,-16,-10,-12,-20,-17]} 1. d4 {[%emt 0:00:03]} Nf6 {[%emt 0:00:05]} 2. c4 {[%emt 0:00:04]} e6 {[%emt 0:00:06]} 3. Nf3 {[%emt 0:00:04]} d5 {[%emt 0:00:28]} 4. g3 {[%emt 0:00:35]} dxc4 {[%emt 0:00:23]} 5. Bg2 {[%emt 0:00:18]} Nc6 {[%emt 0:01:17]} 6. O-O {[%emt 0:00:22]} a6 {[%emt 0:02:41]} 7. Bg5 {[%emt 0:07:58][%mdl 1024] Weiss hat Kompensation.} Be7 {[%emt 0:00:22]} 8. e3 {[%emt 0:00:11]} O-O {[%emt 0:15:02]} 9. Nfd2 {[%emt 0:11:08]} Na5 {[%emt 0:05:55]} 10. Nc3 {[%emt 0:26:50]} (10. Qc2 {kam in Betracht.}) 10... Rb8 $11 {[%emt 0:13:51]} 11. Qa4 {[%emt 0:08:14]} b6 {[%emt 0:06:32]} 12. Rfd1 {[%emt 0:01:27][%cal Og5f6]} (12. Nxc4 $2 {ist das falsche Schlagen.} Bd7 13. Qc2 Nxc4 $19) 12... Bd7 {[%emt 0:10:33]} 13. Qc2 {[%emt 0:00:07]} Ne8 {[%emt 0:02:45][%cal Bf6e8,Be8d6,Bd6b5][%mdl 32]} 14. Bxe7 {[%emt 0:03:33]} Qxe7 {[%emt 0:00:02]} 15. e4 {[%emt 0:00:49][%cal Be3e4,Be4e5][%mdl 32]} Nd6 {[%emt 0:05:12]} 16. Nf1 {[%emt 0:01:24]} Rfd8 {[%emt 0:06:10]} 17. Ne3 {[%emt 0:02:17]} Nc6 {[%emt 0:05:59]} (17... c5 $11) 18. e5 $14 {[%emt 0:09:10]} Nb5 {[%emt 0:01:04]} 19. Ne2 {[%emt 0:00:01][%cal Oa2a4]} Be8 {[%emt 0:04:02][%cal Rb5d4]} 20. Qxc4 {[%emt 0:00:55]} ({Lieber nicht} 20. Nxc4 Nbxd4 (20... Ncxd4 $2 21. Qd3 $19) 21. Qe4 Nxe2+ 22. Qxe2 Rxd1+ 23. Rxd1 Rd8 $19) 20... Na5 {[%emt 0:01:40]} 21. Qc2 {[%emt 0:01:01]} c5 {[%emt 0:00:42]} 22. Qe4 {[%emt 0:12:47]} (22. dxc5 $14 Rxd1+ 23. Rxd1 Qxc5 24. Qe4) 22... cxd4 {[%emt 0:06:41] Die Stellung ist ausgeglichen.} 23. Nxd4 {[%emt 0:00:02]} Nxd4 {[%emt 0:00:23]} 24. Rxd4 {[%emt 0:00:01]} Bc6 {[%emt 0:00:16]} 25. Qf4 {[%emt 0:03:39]} Bxg2 {[%emt 0:01:29]} 26. Kxg2 {[%emt 0:00:18]} Rxd4 {[%emt 0:01:28]} 27. Qxd4 {[%emt 0:00:01]} Nc6 {[%emt 0:00:27]} 28. Qc3 {[%emt 0:03:54]} Qb7 {[%emt 0:01:32]} 29. Kg1 {[%emt 0:00:22]} Rd8 {[%emt 0:00:18]} 30. Rd1 {[%emt 0:01:18] Verhindert Nd4} Rxd1+ {[%emt 0:00:08]} 31. Nxd1 {[%emt 0:00:00] Gewichteter Fehlerwert: Weiß=0.08 (makellos) /Schwarz=0.08 (makellos) .  Fehler:       	Weiß=2     	Schwarz=1     OK:         	Weiß=12    	Schwarz=14    Bester:       	---       	Schwarz=1} 1/2-1/2

[Event "Tsaghkadzor Open 2024"]
[Site "Tsaghkadzor"]
[Date "2024.10.03"]
[Round "5.1"]
[White "Karthik Venkataraman"]
[Black "Goganov, Aleksey"]
[Result "1-0"]
[ECO "C65"]
[WhiteElo "2581"]
[BlackElo "2463"]
[Annotator "TA"]
[PlyCount "83"]
[EventDate "2024.09.13"]
[EventType "swiss"]
[EventCountry "ARM"]
[SourceTitle "playchess.com"]
[Source "ChessBase"]
[SourceQuality "1"]
[TimeControl "40/5400+30:1800+30"]

{[%evp 25,83,0,6,2,41,33,24,0,4,0,22,0,0,0,0,0,0,-16,-21,-57,85,89,66,11,58,60,64,58,56,49,64,60,61,45,44,46,20,33,25,20,18,4,197,212,201,211,265,269,266,259,260,279,449,441,579,580,991,991,995,957]} 1. e4 {[%emt 0:00:13]} e5 {[%emt 0:00:06]} 2. Nf3 {[%emt 0:00:04]} Nc6 {[%emt 0:00:04]} 3. Bb5 {[%emt 0:00:07]} Nf6 {[%emt 0:00:06]} 4. d3 {[%emt 0:01:21]} Bc5 {[%emt 0:00:06]} 5. c3 {[%emt 0:00:08]} O-O {[%emt 0:00:09]} 6. O-O {[%emt 0:00:04]} d6 {[%emt 0:00:40]} 7. Bg5 {[%emt 0:00:28] 7.h3 gains popularity.} h6 {[%emt 0:00:06] C65: Ruy Lopez: Berlin Defence (3...Nf6), unusual lines and 4 0-0 Bc5.} 8. Bh4 {[%emt 0:00:03]} g5 {[%emt 0:00:58]} 9. Bg3 {[%emt 0:00:06]} Nh5 {[%emt 0:02:00]} 10. Nbd2 {[%emt 0:00:02]} Qf6 {[%emt 0:00:25]} 11. Kh1 {[%emt 0:00:13] has lost popularity (11.Bxc6).} Bb6 $146 {[%emt 0:06:25]} ({Predecessor:} 11... Qg6 12. Bc4 a5 13. a3 Kg7 14. b4 axb4 15. axb4 Rxa1 16. Qxa1 Bb6 17. Bd5 Ne7 {1-0 Svidler,P (2751)-Howell,D (2685) Keres Memorial rap 25th rapid 2016 (9)}) 12. a4 {[%emt 0:05:34]} a6 {[%emt 0:00:44]} 13. Bxc6 {[%emt 0:05:23]} bxc6 {[%emt 0:00:05]} 14. d4 {[%emt 0:03:27]} g4 {[%emt 0:10:44]} 15. dxe5 {[%emt 0:06:57]} dxe5 {[%emt 0:00:36]} 16. Bh4 {[%emt 0:00:08]} (16. Bxe5 Qe7 17. a5 gxf3 18. Nxf3 Bc5 $17) 16... Qg7 {[%emt 0:07:44]} 17. Ng1 {[%emt 0:10:09]} f5 {[%emt 0:05:18]} 18. a5 {[%emt 0:02:19]} Ba7 {[%emt 0:00:12]} 19. Qa4 {[%emt 0:00:27]} Rb8 {[%emt 0:09:41]} 20. exf5 {[%emt 0:06:16]} Rxb2 {[%emt 0:05:23]} (20... Bxf5 $6 21. Qc4+ Kh7 22. Qxa6 $16) 21. Nc4 {[%emt 0:01:24]} Rb5 {[%emt 0:01:06]} 22. Ne3 {[%emt 0:00:15]} Kh8 {[%emt 0:09:39]} (22... Bxf5 $6 23. c4 Rb2 24. Nxf5 Rxf5 25. Qxc6 $16) (22... Bxe3 $1 $15 {stays ahead.} 23. fxe3 Bxf5) 23. Qe4 $16 {[%emt 0:03:57]} Nf4 {[%emt 0:03:57]} 24. c4 {[%emt 0:05:11]} (24. Qxc6 $2 Bb7 (24... Bxf5 $2 25. Nxf5 Rxf5 26. Qa8+ Bb8 27. Qxa6 $18) 25. f6 Qf7 $19 (25... Bxc6 $2 26. fxg7+ Kxg7 27. Ne2 $19) (25... Bxc6 $2 26. fxg7+ Kxg7 27. Ne2 $19)) (24. Rad1 $14) 24... Rb8 {[%emt 0:10:34]} (24... Rb3 $1 $11) 25. Rad1 $14 {[%emt 0:13:20]} (25. Qxc6 $2 {is the wrong capture.} Bb7 $19 (25... Bxf5 26. Nxf5 Rxf5 27. Rab1 $11) (25... Bxf5 26. Nxf5 Rxf5 27. Rab1 $16)) 25... Bxe3 {[%emt 0:03:45]} 26. f6 {[%emt 0:01:25]} Qh7 $1 {[%emt 0:10:52]} 27. Qxe3 {[%emt 0:00:37]} Ng6 $1 {[%emt 0:00:04]} 28. Bg3 {[%emt 0:00:25]} Be6 $1 {[%emt 0:00:15]} 29. f4 {[%emt 0:21:49]} Rxf6 {[%emt 0:01:45]} 30. fxe5 {[%emt 0:00:03]} Rxf1 {[%emt 0:00:34]} 31. Rxf1 {[%emt 0:00:02]} Bxc4 {[%emt 0:02:29]} 32. Rf6 {[%emt 0:00:01]} Bd5 $1 {[%emt 0:07:17]} 33. e6 {[%emt 0:00:05]} Re8 $2 {[%emt 0:01:47]} (33... Kg8 $1 $11) 34. Rf7 $18 {[%emt 0:13:47]} Qxf7 {[%emt 0:00:04]} 35. Be5+ {[%emt 0:00:02]} Nxe5 {[%emt 0:01:04]} 36. exf7 {[%emt 0:00:02]} Bxf7 {[%emt 0:00:05]} 37. Qxh6+ {[%emt 0:00:03]} Kg8 {[%emt 0:00:03]} 38. h4 {[%emt 0:00:27]} (38. Qg5+ Kf8 39. Qf6 Kg8) 38... Re6 $2 {[%emt 0:01:50]} (38... Bc4 {was worth a try.} 39. Qe3 Kf8) 39. Qg5+ $18 {[%emt 0:00:02]} Kh7 {[%emt 0:00:07]} 40. Ne2 {[%emt 0:00:00]} Ng6 {[%emt 0:00:00]} 41. Nd4 {[%emt 0:18:14]} Re5 {[%emt 0:16:08]} 42. Nf5 {[%emt 0:01:01]} 1-0

[Event "Tsaghkadzor Open 2024"]
[Site "Tsaghkadzor"]
[Date "2024.10.03"]
[Round "5.2"]
[White "Audi Ameya"]
[Black "Andriasian, Zaven"]
[Result "1/2-1/2"]
[ECO "B72"]
[WhiteElo "2413"]
[BlackElo "2558"]
[Annotator "TA"]
[PlyCount "86"]
[EventDate "2024.09.13"]
[EventType "swiss"]
[EventCountry "ARM"]
[SourceTitle "playchess.com"]
[Source "ChessBase"]
[SourceQuality "1"]
[TimeControl "40/5400+30:1800+30"]

{[%evp 14,86,32,40,41,27,21,0,0,0,0,0,15,0,0,0,0,16,10,0,16,7,14,16,93,105,108,105,108,97,122,95,140,147,143,151,158,155,175,152,175,188,184,167,191,179,202,197,193,202,156,122,134,0,0,0,0,0,0,-7,0,0,0,0,0,0,0,0,0,0,0,0,0,0,0]} 1. e4 {[%emt 1:31:00]} c5 {[%emt 1:31:00]} 2. Nf3 {[%emt 0:00:30]} d6 {[%emt 0:00:30]} 3. d4 {[%emt 0:00:30]} cxd4 {[%emt 0:00:30]} 4. Nxd4 {[%emt 0:00:30]} Nf6 {[%emt 0:00:30]} 5. Nc3 {[%emt 0:00:30]} a6 {[%emt 0:00:30]} 6. Bd3 {[%emt 0:00:30]} g6 {[%emt 0:00:30]} 7. f3 {[%emt 0:00:30]} Bg7 {[%emt 0:00:30]} 8. Be3 {[%emt 0:00:30]} Nbd7 {[%emt 0:00:30]} 9. Qd2 {[%emt 0:00:30]} b5 {[%emt 0:00:30]} 10. a4 {[%emt 0:00:30]} b4 {[%emt 0:00:30]} 11. Na2 {[%emt 0:00:30]} d5 {[%emt 0:00:30]} 12. exd5 {[%emt 0:00:30]} Nxd5 {[%emt 0:00:30]} 13. Nxb4 {[%emt 0:00:30]} Nxe3 {[%emt 0:00:30]} 14. Qxe3 {[%emt 0:00:30] [#] Ndc6 would now be deadly.} Qc7 {[%emt 0:00:30]} 15. Be4 {[%emt 0:00:30]} Bb7 {[%emt 0:00:30]} 16. O-O-O {[%emt 0:00:30]} O-O {[%emt 0:00:30]} 17. Bxb7 {[%emt 0:00:30]} Qxb7 {[%emt 0:00:30]} 18. Ndc6 {[%emt 0:00:30]} (18. Qxe7 $2 Rfe8 19. Qd6 Be5 $19) 18... Ne5 {[%emt 0:00:30]} 19. Nxe5 $16 {[%emt 0:00:30]} Qxb4 {[%emt 0:00:30] Black is weak on the light squares} 20. Rd4 $36 {[%emt 0:00:30][%mdl 2048] White is in control.} Qb6 {[%emt 0:00:30]} 21. Rhd1 {[%emt 0:00:30] Active counter play!} Qe6 {[%emt 0:00:30]} 22. Rd5 {[%emt 0:00:30]} Rfc8 {[%emt 0:00:30]} 23. b3 {[%emt 0:00:30]} Rab8 {[%emt 0:00:30]} 24. R1d3 {[%emt 0:00:30]} Qf6 {[%emt 0:00:30] [#]} 25. f4 $1 {[%emt 0:00:30]} h5 {[%emt 0:00:30]} 26. g3 {[%emt 0:00:30]} Kh7 {[%emt 0:00:30]} 27. Kd2 {[%emt 0:00:30]} Rb7 {[%emt 0:00:30]} 28. h4 {[%emt 0:00:30]} Rcc7 {[%emt 0:00:30]} 29. c4 {[%emt 0:00:30]} e6 {[%emt 0:00:30]} 30. Rd6 {[%emt 0:00:30]} a5 {[%emt 0:00:30]} 31. c5 {[%emt 0:00:30] Hoping for c6.} Bf8 {[%emt 0:00:30][%cal Of6f5]} 32. c6 {[%emt 0:00:30]} Bxd6 {[%emt 0:00:30]} 33. cxb7 {[%emt 0:00:30]} (33. Rxd6 $16 Rb8 34. Kc2) 33... Bb4+ $11 {[%emt 0:00:30] The position is equal.} 34. Ke2 {[%emt 0:00:30] The board is on fire.} Rxb7 {[%emt 0:00:30]} 35. Qe4 {[%emt 0:00:30]} Rc7 {[%emt 0:00:30]} 36. Rd4 {[%emt 0:00:30]} Bc5 {[%emt 0:00:30]} 37. Rc4 {[%emt 0:00:30]} Qe7 {[%emt 0:00:30]} 38. Qa8 {[%emt 0:00:30]} f6 {[%emt 0:00:30]} 39. Nd3 {[%emt 0:00:30]} ({But not} 39. Qh8+ $2 Kxh8 40. Nxg6+ Kg7 41. Nxe7 Kf7 $19) 39... Ba7 {[%emt 0:00:30]} 40. Kd2 {[%emt 0:00:30]} Qd6 {[%emt 0:00:30]} 41. Rxc7+ {[%emt 0:30:30]} Qxc7 {[%emt 0:30:30]} 42. Qe4 {[%emt 0:00:30] Prevents Bd4} Qd7 {[%emt 0:00:30]} 43. b4 {[%emt 0:00:30]} axb4 {[%emt 0:00:30] Black escapes into a draw.   Weighted Error Value: White=0.10 (very precise) /Black=0.10 (very precise) .  Mistake:       	White=1     	Black=1      Inaccurate:     	---       	Black=1      OK:         	White=18    	Black=13     Best:        	White=2     	Black=3} 1/2-1/2